fUSD/lending_fUSD_20240704
["ID","MTS","AMOUNT","RATE_DAILY","PERIOD"]
[331178671,1720121855588,-2850.76,0.00034246,18]
[331178672,1720121855612,-2000.0,0.000344,12]
[331178673,1720121855635,-2000.0,0.000344,12]
[331178674,1720121855658,-150.0,0.00034548,10]
[331178675,1720121855681,-1254.663635,0.0003494,14]
[331178676,1720121855704,-1000.0,0.0003496,14]
[331178677,1720121855734,-1000.0,0.0003498,14]
[331178678,1720121855758,-1000.0,0.00035,120]
[331178679,1720121855785,-200.0,0.00035,120]
[331178680,1720121855811,-777.57551817,0.00035,30]
[331178681,1720121855836,-1439.90013748,0.00035,30]
[331178682,1720121855862,-1000.0,0.00035,14]
[331178683,1720121855886,-2000.0,0.000354,15]
[331178684,1720121855912,-2000.0,0.000354,15]
[331178685,1720121855936,-302.32589588,0.0003549,10]
[331178686,1720121855967,-2850.76,0.00035616,20]
[331178687,1720121855992,-200.0,0.00035616,60]
[331178688,1720121856018,-1000.0,0.00035616,30]
[331178689,1720121856042,-1000.0,0.00035769,30]
[331178690,1720121856065,-1000.0,0.00035921,30]
[331178691,1720121856089,-1000.0,0.00036,120]
[331178692,1720121856112,-1000.0,0.00036,120]
[331178693,1720121856135,-1000.0,0.00036073,30]
[331178694,1720121856158,-1000.0,0.00036225,30]
[331178695,1720121856182,-1000.0,0.00036377,30]
[331178696,1720121856206,-2000.0,0.000364,17]
[331178697,1720121856233,-2000.0,0.000364,17]
[331178698,1720121856257,-1000.0,0.0003653,30]
[331178699,1720121856281,-1000.0,0.00036682,30]
[331178700,1720121856303,-1000.0,0.00036834,30]
[331178701,1720121856328,-150.0,0.00036972,120]
[331178702,1720121856351,-2850.76,0.00036986,22]
[331178703,1720121856374,-1000.0,0.00036986,30]
[331178704,1720121856397,-669.5143749,0.00037,120]
[331178705,1720121856421,-157.17296882,0.00037,30]
[331178706,1720121856445,-156.35,0.00037114,30]
[331178707,1720121856470,-1000.0,0.00037139,30]
[331178708,1720121856493,-1000.0,0.00037291,30]
[331178709,1720121856520,-238.36,0.000373,31]
[331178710,1720121856543,-1044.599999,0.000374,19]
[331178711,1720121856565,-1044.6,0.000374,19]
[331178712,1720121856589,-1000.0,0.00037443,30]
[331178713,1720121856612,-150.0,0.000375,26]
[331178714,1720121856634,-1000.0,0.00037595,30]
[331178715,1720121856658,-1000.0,0.00037747,30]
[331178716,1720121856681,-1000.0,0.000379,30]
[331178717,1720121856704,-156.86637705,0.00037999,120]
[331178718,1720121856729,-545.49273384,0.00038,120]
[331178719,1720121856751,-543.03021466,0.00038,30]
[331178720,1720121856778,-307.11109778,0.00038,30]
[331178721,1720121856802,-1000.0,0.00038,120]
[331178722,1720121856826,-667.1626747,0.00038,120]
[331178723,1720121856855,-500.0,0.00038,30]
[331178724,1720121856877,-738.54773623,0.00038,120]
[331178725,1720121856900,-150.0,0.00038,27]
[331178726,1720121856926,-1000.0,0.00038052,30]
[331178727,1720121856950,-1000.0,0.00038204,30]
[331178728,1720121856976,-491.0,0.000383,24]
[331178729,1720121856999,-257.0,0.000383,13]
[331178730,1720121857022,-257.0,0.000383,13]
[331178731,1720121857046,-515.0,0.000383,13]
[331178732,1720121857199,-191.0,0.000383,24]
[331178733,1720121857224,-150.0,0.000383,14]
[331178734,1720121857246,-154.016502,0.000383,36]
[331178735,1720121857272,-2850.76,0.00038356,24]
[331178736,1720121857295,-500.0,0.00038356,20]
[331178737,1720121857318,-500.0,0.00038356,20]
[331178738,1720121857340,-500.0,0.00038356,20]
[331178739,1720121857363,-500.0,0.00038356,20]
[331178740,1720121857385,-500.0,0.00038356,20]
[331178741,1720121857409,-500.0,0.00038356,20]
[331178742,1720121857432,-500.0,0.00038356,20]
[331178743,1720121857454,-500.0,0.00038356,20]
[331178744,1720121857477,-497.50336727,0.00038356,20]
[331178745,1720121857500,-200.0,0.00038356,60]
[331178746,1720121857523,-1000.0,0.00038356,30]
[331178747,1720121857545,-1463.01218867,0.000384,33]
[331178748,1720121857567,-150.0,0.000385,28]
[331178749,1720121857590,-1000.0,0.00038508,30]
[331178750,1720121857612,-1000.0,0.00038661,30]
[331178751,1720121857634,-617.8803252,0.000387,30]
[331178752,1720121857656,-4036.94811247,0.000388,28]
[331178753,1720121857677,-1772.61711405,0.00038807,40]
[331178754,1720121857701,-182.63173799,0.00038807,40]
[331178755,1720121857723,-177.40926763,0.00038807,40]
[331178756,1720121857745,-235.74564725,0.00038807,40]
[331178757,1720121857768,-1000.0,0.00038813,30]
[331178758,1720121857794,-1308.06340502,0.000389,30]
[331178759,1720121857818,-1000.0,0.00038965,30]
[331178760,1720121857847,-50000.0,0.00039,29]
[331178761,1720121857873,-638.57537859,0.00039,15]
[331178762,1720121857897,-2940.73644534,0.00039,120]
[331178763,1720121857920,-3064.59333531,0.00039,120]
[331178764,1720121857942,-337.67885367,0.00039,120]
[331178765,1720121857965,-150.0,0.00039,28]
[331178766,1720121857989,-1000.0,0.00039117,30]
[331178767,1720121858013,-500.0,0.00039177,10]
[331178768,1720121858042,-600.0,0.00039177,10]
[331178769,1720121858065,-1000.0,0.00039269,30]
[331178770,1720121858090,-2597.1,0.000394,30]
[331178771,1720121858113,-1000.0,0.00039422,30]
[331178772,1720121858136,-150.0,0.000395,29]
[331178773,1720121858160,-1000.0,0.00039574,30]
[331178774,1720121858183,-2311.51061037,0.000397,60]
[331178775,1720121858207,-600.0,0.00039725,10]
[331178776,1720121858232,-1000.0,0.00039726,90]
[331178777,1720121858258,-2850.76,0.00039726,26]
[331178778,1720121858281,-1000.0,0.00039726,30]
[331178779,1720121858305,-1000.0,0.0003987,120]
[331178780,1720121858330,-1000.0,0.00039878,30]
[331178781,1720121858353,-409.0,0.00039986,90]
[331178782,1720121858376,-250.0,0.00039999,30]
[331178783,1720121858401,-50000.0,0.0004,30]
[331178784,1720121858427,-50000.0,0.0004,40]
[331178785,1720121858450,-707.88045494,0.0004,10]
[331178786,1720121858473,-6668.94152275,0.0004,10]
[331178787,1720121858496,-1845.56815949,0.0004,14]
[331178788,1720121858519,-324.77342491,0.0004,30]
[331178789,1720121858541,-1000.0,0.0004,20]
[331178790,1720121858564,-2824.04423472,0.0004,60]
[331178791,1720121858589,-3190.63923269,0.0004,30]
[331178792,1720121858612,-3523.87608438,0.0004,14]
[331178793,1720121858635,-296.26699894,0.0004,30]
[331178794,1720121858658,-240.16706273,0.0004,30]
[331178795,1720121858681,-727.28821667,0.0004,120]
[331178796,1720121858703,-151.0,0.0004,120]
[331178797,1720121858729,-200.0,0.0004,120]
[331178798,1720121858754,-477.12749073,0.0004,30]
[331178799,1720121858784,-925.17097077,0.0004,120]
[331178800,1720121858808,-418.69917158,0.0004,120]
[331178801,1720121858832,-1481.28025589,0.0004,120]
[331178802,1720121858858,-160.00520593,0.0004,30]
[331178803,1720121858884,-370.91696703,0.0004,30]
[331178804,1720121858911,-201.21225197,0.0004,120]
[331178805,1720121858939,-200.0,0.0004,120]
[331178806,1720121858961,-1100.0,0.0004,30]
[331178807,1720121858986,-197.61491513,0.0004,120]
[331178808,1720121859010,-1000.0,0.0004,120]
[331178809,1720121859034,-1300.0,0.0004,120]
[331178810,1720121859056,-11257.94987313,0.0004,30]
[331178811,1720121859080,-173.24444444,0.0004,120]
[331178812,1720121859103,-13187.4559129,0.0004,120]
[331178813,1720121859127,-13671.9421013,0.0004,30]
[331178814,1720121859150,-738.54773623,0.0004,120]
[331178815,1720121859173,-500.0,0.0004,120]
[331178816,1720121859196,-500.0,0.0004,120]
[331178817,1720121859224,-500.0,0.0004,120]
[331178818,1720121859250,-2362.94,0.0004,120]
[331178819,1720121859274,-150.0,0.0004,29]
[331178820,1720121859297,-1000.0,0.0004003,30]
[331178821,1720121859319,-1000.0,0.00040183,30]
[331178822,1720121859342,-2493.44410273,0.00040254,12]
[331178823,1720121859365,-600.0,0.00040273,10]
[331178824,1720121859388,-1000.0,0.00040273,92]
[331178825,1720121859412,-312.65936816,0.00040273,10]
[331178826,1720121859436,-1000.0,0.00040335,30]
[331178827,1720121859460,-150.0,0.00040382,120]
[331178828,1720121859484,-1000.0,0.00040487,30]
[331178829,1720121859507,-150.0,0.000405,30]
[331178830,1720121859530,-1000.0,0.00040639,30]
[331178831,1720121859553,-2524.0,0.000407,81]
[331178832,1720121859576,-173.24444444,0.00040712,120]
[331178833,1720121859598,-1000.0,0.00040791,30]
[331178834,1720121859621,-934.356231,0.000408,30]
[331178835,1720121859784,-600.0,0.00040821,10]
[331178836,1720121859808,-1000.0,0.00040821,94]
[331178837,1720121859833,-2772.77227189,0.00040888,60]
[331178838,1720121859860,-3076.81590712,0.000409,120]
[331178839,1720121859884,-3076.8159071,0.000409,120]
[331178840,1720121859909,-3076.8159071,0.000409,120]
[331178841,1720121859934,-3076.8159071,0.000409,120]
[331178842,1720121859958,-3076.8159071,0.000409,120]
[331178843,1720121859983,-3076.8159071,0.000409,120]
[331178844,1720121860008,-3076.8159071,0.000409,120]
[331178845,1720121860031,-3076.8159071,0.000409,120]
[331178846,1720121860056,-3076.8159071,0.000409,120]
[331178847,1720121860080,-3076.8159071,0.000409,120]
[331178848,1720121860104,-3076.8159071,0.000409,120]
[331178849,1720121860127,-3076.8159071,0.000409,120]
[331178850,1720121860152,-3076.8159071,0.000409,120]
[331178851,1720121860176,-3076.8159071,0.000409,120]
[331178852,1720121860199,-3076.8159071,0.000409,120]
[331178853,1720121860225,-3076.8159071,0.000409,120]
[331178854,1720121860248,-3076.8159071,0.000409,120]
[331178855,1720121860271,-3076.8159071,0.000409,120]
[331178856,1720121860296,-3076.8159071,0.000409,120]
[331178857,1720121860320,-3076.8159071,0.000409,120]
[331178858,1720121860343,-1000.0,0.00040944,30]
[331178859,1720121860369,-50000.0,0.00041,31]
[331178860,1720121860394,-50000.0,0.00041,41]
[331178861,1720121860418,-2476.89655849,0.00041,30]
[331178862,1720121860442,-746.22995036,0.00041,60]
[331178863,1720121860464,-1002.39778979,0.00041,120]
[331178864,1720121860490,-1400000.0,0.00041,70]
[331178865,1720121860514,-500.0,0.00041,120]
[331178866,1720121860538,-150.0,0.00041,30]
[331178867,1720121860562,-152.0,0.00041041,31]
[331178868,1720121860587,-510.0,0.00041095,120]
[331178869,1720121860610,-2850.76,0.00041095,28]
[331178870,1720121860633,-1000.0,0.00041096,30]
[331178871,1720121860655,-151.0,0.00041123,120]
[331178872,1720121860678,-1000.0,0.00041248,30]
[331178873,1720121860701,-510.0,0.00041369,120]
[331178874,1720121860725,-600.0,0.00041369,30]
[331178875,1720121860748,-1000.0,0.00041369,96]
[331178876,1720121860775,-1000.0,0.000414,30]
[331178877,1720121860798,-173.24444444,0.00041425,120]
[331178878,1720121860822,-205989.31904088,0.000415,80]
[331178879,1720121871542,-2196.0,0.00027397,10]
[331178880,1720121871568,-1662.94,0.00028767,10]
[331178881,1720121871595,-1662.94,0.00030136,12]
[331178882,1720121871636,-1662.94,0.00031506,14]
[331178883,1720121871662,-1662.94,0.00032876,16]
[331178884,1720121871691,-191.0,0.000383,24]
[331178885,1720121871735,-894010.68095912,0.000415,80]
[331178886,1720121871763,-150.0,0.000415,31]
[331178887,1720121871792,-150.0,0.000415,30]
[331178888,1720121871818,-1000.0,0.00041553,30]
[331178889,1720121871844,-236.0,0.000416,120]
[331178890,1720121871870,-510.0,0.00041643,120]
[331178891,1720121871895,-1000.0,0.00041705,30]
[331178892,1720121871920,-397.38172381,0.000418,120]
[331178893,1720121871946,-1000.0,0.00041857,30]
[331178894,1720121871971,-600.0,0.00041917,30]
[331178895,1720121871997,-510.0,0.00041917,120]
[331178896,1720121872024,-1000.0,0.00041917,98]
[331178897,1720121872048,-453.47705904,0.00041918,30]
[331178898,1720121872071,-150.0,0.00041918,30]
[331178899,1720121872094,-150.0,0.00041918,30]
[331178900,1720121872118,-150.0,0.00041918,30]
[331178901,1720121872142,-195.81414408,0.00041918,30]
[331178902,1720121872167,-150.54546001,0.00041918,30]
[331178903,1720121872191,-150.0,0.00041918,30]
[331178904,1720121872214,-150.46864412,0.00041918,30]
[331178905,1720121872238,-150.0,0.00041918,30]
[331178906,1720121872261,-150.0,0.00041918,30]
[331178907,1720121872286,-150.0,0.00041918,30]
[331178908,1720121872314,-453.47705904,0.00041965,30]
[331178909,1720121872341,-195.81414408,0.00041965,30]
[331178910,1720121872366,-150.0,0.00041966,30]
[331178911,1720121872391,-1047.92204963,0.00041992,120]
[331178912,1720121872418,-50000.0,0.00042,32]
[331178913,1720121872445,-50000.0,0.00042,42]
[331178914,1720121872469,-16808.34702105,0.00042,20]
[331178915,1720121872496,-597.97506647,0.00042,60]
[331178916,1720121872520,-470.01250465,0.00042,120]
[331178917,1720121872545,-1015.70682897,0.00042,120]
[331178918,1720121872570,-1000.0,0.00042,120]
[331178919,1720121872595,-1200.0,0.00042,120]
[331178920,1720121872618,-26277.00768041,0.00042,30]
[331178921,1720121872643,-1800000.0,0.00042,90]
[331178922,1720121872667,-589.0,0.00042,120]
[331178923,1720121872691,-719.45909523,0.00042,120]
[331178924,1720121872716,-150.0,0.00042,31]
[331178925,1720121872739,-1000.0,0.00042009,30]
[331178926,1720121872764,-453.47705904,0.00042012,30]
[331178927,1720121872794,-195.81414408,0.00042012,30]
[331178928,1720121872818,-150.0,0.00042014,30]
[331178929,1720121872844,-453.47705904,0.00042059,30]
[331178930,1720121872870,-195.81414408,0.00042059,30]
[331178931,1720121872897,-150.0,0.00042062,30]
[331178932,1720121872921,-150.0,0.00042078,30]
[331178933,1720121872946,-453.47705904,0.00042106,30]
[331178934,1720121872971,-195.81414408,0.00042106,30]
[331178935,1720121872997,-150.0,0.0004211,30]
[331178936,1720121873022,-173.24444444,0.00042137,120]
[331178937,1720121873046,-453.47705904,0.00042153,30]
[331178938,1720121873071,-195.81414408,0.00042153,30]
[331178939,1720121873095,-150.0,0.00042158,30]
[331178940,1720121873119,-1000.0,0.00042161,30]
[331178941,1720121873142,-150.0,0.00042176,30]
[331178942,1720121873166,-243.88554963,0.00042191,120]
[331178943,1720121873189,-453.47705904,0.000422,30]
[331178944,1720121873213,-195.81414408,0.000422,30]
[331178945,1720121873236,-150.0,0.00042206,30]
[331178946,1720121873260,-150.0,0.00042239,30]
[331178947,1720121873285,-151.0,0.00042247,120]
[331178948,1720121873308,-453.47705904,0.00042247,30]
[331178949,1720121873331,-195.81414408,0.00042247,30]
[331178950,1720121873354,-150.0,0.00042254,30]
[331178951,1720121873376,-1039.0,0.00042287,30]
[331178952,1720121873399,-453.47705904,0.00042294,30]
[331178953,1720121873423,-195.81414408,0.00042294,30]
[331178954,1720121873446,-150.0,0.00042302,30]
[331178955,1720121873469,-1000.0,0.00042314,30]
[331178956,1720121873493,-453.47705904,0.00042341,30]
[331178957,1720121873516,-195.81414408,0.00042341,30]
[331178958,1720121873539,-150.0,0.0004235,30]
[331178959,1720121873765,-453.47705904,0.00042388,30]
[331178960,1720121873793,-195.81414408,0.00042388,30]
[331178961,1720121873817,-150.0,0.00042398,30]
[331178962,1720121873841,-150.0,0.00042399,30]
[331178963,1720121873866,-453.47705904,0.00042435,30]
[331178964,1720121873890,-195.81414408,0.00042435,30]
[331178965,1720121873912,-150.0,0.00042435,30]
[331178966,1720121873935,-150.0,0.00042446,30]
[331178967,1720121873959,-600.0,0.00042465,30]
[331178968,1720121873995,-1000.0,0.00042465,100]
[331178969,1720121874021,-1000.0,0.00042466,30]
[331178970,1720121874047,-453.47705904,0.00042482,30]
[331178971,1720121874072,-195.81414408,0.00042482,30]
[331178972,1720121874098,-150.0,0.00042494,30]
[331178973,1720121874124,-120972.8173319,0.000425,90]
[331178974,1720121880071,-1830.0,0.00027397,10]
[331178975,1720121880121,-1662.94,0.00034246,18]
[331178976,1720121880148,-1662.94,0.00035616,20]
[331178977,1720121880176,-1662.94,0.00036986,22]
[331178978,1720121880206,-1662.94,0.00038356,24]
[331178979,1720121880231,-1662.94,0.00039726,26]
[331178980,1720121880261,-1662.94,0.00041095,28]
[331178981,1720121880285,-1662.94,0.00042465,30]
[331178982,1720121880310,-879027.1826681,0.000425,90]
[331178983,1720121880334,-3225.63,0.000425,120]
[331178984,1720121880357,-241.0,0.000425,32]
[331178985,1720121880382,-453.47705904,0.00042529,30]
[331178986,1720121880407,-195.81414408,0.00042529,30]
[331178987,1720121880435,-150.0,0.00042542,30]
[331178988,1720121880460,-150.0,0.0004256,30]
[331178989,1720121880485,-453.47705904,0.00042576,30]
[331178990,1720121880509,-195.81414408,0.00042576,30]
[331178991,1720121880533,-150.0,0.0004259,30]
[331178992,1720121880558,-1000.0,0.00042618,30]
[331178993,1720121880582,-453.47705904,0.00042623,30]
[331178994,1720121880610,-195.81414408,0.00042623,30]
[331178995,1720121880633,-150.0,0.00042638,30]
[331178996,1720121880658,-453.47705904,0.0004267,30]
[331178997,1720121880682,-195.81414408,0.0004267,30]
[331178998,1720121880705,-150.0,0.00042686,30]
[331178999,1720121880728,-150.0,0.00042694,30]
[331179000,1720121880753,-453.47705904,0.00042717,30]
[331179001,1720121880780,-195.81414408,0.00042717,30]
[331179002,1720121880804,-150.0,0.00042721,30]
[331179003,1720121880828,-150.0,0.00042734,30]
[331179004,1720121880853,-453.47705904,0.00042764,30]
[331179005,1720121880881,-195.81414408,0.00042764,30]
[331179006,1720121880905,-1000.0,0.0004277,30]
[331179007,1720121880929,-150.0,0.00042782,30]
[331179008,1720121880954,-453.47705904,0.00042811,30]
[331179009,1720121880978,-195.81414408,0.00042811,30]
[331179010,1720121881002,-150.0,0.0004283,30]
[331179011,1720121881025,-150.0,0.00042849,30]
[331179012,1720121881048,-3358.94318609,0.00042849,60]
[331179013,1720121881075,-173.24444444,0.00042849,120]
[331179014,1720121881101,-453.47705904,0.00042858,30]
[331179015,1720121881129,-195.81414408,0.00042858,30]
[331179016,1720121881152,-150.0,0.00042878,30]
[331179017,1720121881174,-251.16330192,0.0004288,120]
[331179018,1720121881198,-150.0,0.00042881,30]
[331179019,1720121881222,-152.0,0.00042886,31]
[331179020,1720121881247,-453.47705904,0.00042905,30]
[331179021,1720121881270,-195.81414408,0.00042905,30]
[331179022,1720121881293,-1000.0,0.00042922,30]
[331179023,1720121881318,-150.0,0.00042926,30]
[331179024,1720121881341,-453.47705904,0.00042953,30]
[331179025,1720121881366,-195.81414408,0.00042953,30]
[331179026,1720121881391,-150.0,0.00042953,30]
[331179027,1720121881414,-150.0,0.00042974,30]
[331179028,1720121881440,-453.47705904,0.00043,30]
[331179029,1720121881463,-195.81414408,0.00043,30]
[331179030,1720121881492,-50000.0,0.00043,33]
[331179031,1720121881518,-50000.0,0.00043,43]
[331179032,1720121881541,-13706.05370881,0.00043,10]
[331179033,1720121881565,-1836.3943049,0.00043,14]
[331179034,1720121881587,-719.44467042,0.00043,120]
[331179035,1720121881610,-512.74833987,0.00043,30]
[331179036,1720121881635,-999999.99999901,0.00043,60]
[331179037,1720121881658,-1400000.0,0.00043,90]
[331179038,1720121881680,-5326.54368578,0.00043,120]
[331179039,1720121881703,-1477.09547247,0.00043,120]
[331179040,1720121881727,-600.0,0.00043013,30]
[331179041,1720121881753,-1000.0,0.00043013,102]
[331179042,1720121881780,-150.0,0.00043022,30]
[331179043,1720121881803,-150.0,0.00043042,30]
[331179044,1720121881827,-453.47705904,0.00043047,30]
[331179045,1720121881857,-195.81414408,0.00043047,30]
[331179046,1720121881882,-150.0,0.0004307,30]
[331179047,1720121882033,-1000.0,0.00043075,30]
[331179048,1720121882086,-453.47705904,0.00043094,30]
[331179049,1720121882110,-195.81414408,0.00043094,30]
[331179050,1720121882133,-150.0,0.00043118,30]
[331179051,1720121882156,-453.47705904,0.00043141,30]
[331179052,1720121882181,-195.81414408,0.00043141,30]
[331179053,1720121882205,-150.0,0.00043166,30]
[331179054,1720121882229,-453.47705904,0.00043188,30]
[331179055,1720121882254,-195.81414408,0.00043188,30]
[331179056,1720121882277,-150.0,0.00043202,30]
[331179057,1720121882302,-150.0,0.0004321,120]
[331179058,1720121882325,-150.0,0.00043211,30]
[331179059,1720121882347,-150.0,0.00043214,30]
[331179060,1720121882371,-1000.0,0.00043227,30]
[331179061,1720121882396,-453.47705904,0.00043235,30]
[331179062,1720121882421,-195.81414408,0.00043235,30]
[331179063,1720121882444,-150.0,0.00043262,30]
[331179064,1720121882468,-453.47705904,0.00043282,30]
[331179065,1720121882493,-195.81414408,0.00043282,30]
[331179066,1720121882516,-150.0,0.0004331,30]
[331179067,1720121882539,-453.47705904,0.00043329,30]
[331179068,1720121882564,-195.81414408,0.00043329,30]
[331179069,1720121882586,-150.0,0.00043358,30]
[331179070,1720121882610,-150.0,0.00043363,30]
[331179071,1720121882635,-151.0,0.0004337,120]
[331179072,1720121882660,-453.47705904,0.00043376,30]
[331179073,1720121882684,-195.81414408,0.00043376,30]
[331179074,1720121882707,-1000.0,0.00043379,30]
[331179075,1720121882731,-150.0,0.00043406,30]
[331179076,1720121882756,-453.47705904,0.00043423,30]
[331179077,1720121882784,-195.81414408,0.00043423,30]
[331179078,1720121882809,-150.0,0.00043454,30]
[331179079,1720121882834,-453.47705904,0.0004347,30]
[331179080,1720121882863,-195.81414408,0.0004347,30]
[331179081,1720121882886,-150.0,0.0004347,30]
[331179082,1720121882910,-150.0,0.0004347,30]
[331179083,1720121882934,-150.0,0.00043502,30]
[331179084,1720121882958,-453.47705904,0.00043517,30]
[331179085,1720121882981,-195.81414408,0.00043517,30]
[331179086,1720121883006,-150.0,0.00043524,30]
[331179087,1720121883029,-1000.0,0.00043531,30]
[331179088,1720121883052,-150.0,0.0004355,30]
[331179089,1720121883075,-600.0,0.00043561,30]
[331179090,1720121883098,-1000.0,0.00043561,104]
[331179091,1720121883122,-173.24444444,0.00043562,120]
[331179092,1720121883145,-453.47705904,0.00043564,30]
[331179093,1720121883171,-195.81414408,0.00043564,30]
[331179094,1720121883196,-150.0,0.00043598,30]
[331179095,1720121883222,-453.47705904,0.00043611,30]
[331179096,1720121883250,-195.81414408,0.00043611,30]
[331179097,1720121883275,-150.0,0.00043646,30]
[331179098,1720121883303,-453.47705904,0.00043658,30]
[331179099,1720121883328,-195.81414408,0.00043658,30]
[331179100,1720121883354,-1000.0,0.00043683,30]
[331179101,1720121883379,-150.0,0.00043684,30]
[331179102,1720121883402,-150.0,0.00043694,30]
[331179103,1720121883424,-976.70247785,0.00043698,120]
[331179104,1720121883447,-534.26759159,0.000437,120]
[331179105,1720121883469,-154.80021874,0.000437,120]
[331179106,1720121883494,-453.47705904,0.00043705,30]
[331179107,1720121883519,-195.81414408,0.00043705,30]
[331179108,1720121883544,-150.0,0.00043729,30]
[331179109,1720121883568,-150.0,0.00043742,30]
[331179110,1720121883591,-1202.5199114,0.00043748,120]
[331179111,1720121883615,-453.47705904,0.00043752,30]
[331179112,1720121883638,-195.81414408,0.00043752,30]
[331179113,1720121883661,-1143.0,0.00043781,28]
[331179114,1720121883684,-150.0,0.00043781,30]
[331179115,1720121883708,-150.0,0.0004379,30]
[331179116,1720121883731,-453.47705904,0.00043799,30]
[331179117,1720121883755,-195.81414408,0.00043799,30]
[331179118,1720121883782,-1414.60023453,0.000438,111]
[331179119,1720121883804,-464.79535218,0.000438,30]
[331179120,1720121883829,-735.1857516,0.000438,120]
[331179121,1720121883857,-3500.0,0.000438,60]
[331179122,1720121883882,-500.0,0.00043835,120]
[331179123,1720121883907,-1000.0,0.00043835,70]
[331179124,1720121883932,-500.0,0.00043835,120]
[331179125,1720121883956,-500.0,0.00043835,120]
[331179126,1720121883980,-1662.94,0.00043835,120]
[331179127,1720121884008,-1225.35362743,0.00043836,30]
[331179128,1720121884037,-500.0,0.00043836,14]
[331179129,1720121884062,-150.0,0.00043838,30]
[331179130,1720121884088,-150.0,0.00043845,30]
[331179131,1720121884114,-453.47705904,0.00043846,30]
[331179132,1720121884139,-195.81414408,0.00043846,30]
[331179133,1720121884163,-150.0,0.00043886,30]
[331179134,1720121884188,-453.47705904,0.00043893,30]
[331179135,1720121884212,-195.81414408,0.00043893,30]
[331179136,1720121884236,-1052.78537861,0.000439,120]
[331179137,1720121884262,-150.0,0.00043934,30]
[331179138,1720121884287,-453.47705904,0.0004394,30]
[331179139,1720121884311,-195.81414408,0.0004394,30]
[331179140,1720121884334,-2776.4,0.00043951,99]
[331179141,1720121884357,-150.0,0.00043982,30]
[331179142,1720121884380,-150.0,0.00043988,30]
[331179143,1720121884406,-453.47705904,0.00043988,30]
[331179144,1720121884430,-195.81414408,0.00043988,30]
[331179145,1720121884456,-50000.0,0.00044,34]
[331179146,1720121884483,-50000.0,0.00044,44]
[331179147,1720121884508,-736.63010231,0.00044,120]
[331179148,1720121884532,-250.0,0.00044,15]
[331179149,1720121884555,-150.0,0.00044,120]
[331179150,1720121884579,-297.10652674,0.00044,30]
[331179151,1720121884740,-650.0,0.00044,120]
[331179152,1720121884768,-1414793.32610093,0.00044,120]
[331179153,1720121889256,-150.0,0.00042465,30]
[331179154,1720121889284,-85206.67389907,0.00044,120]
[331179155,1720121889310,-30000.0,0.00044,120]
[331179156,1720121889339,-1000.0,0.00044,120]
[331179157,1720121889363,-1100.0,0.00044,120]
[331179158,1720121889388,-654.95609,0.00044,57]
[331179159,1720121889413,-150.0,0.00044005,30]
[331179160,1720121889436,-2493.44410273,0.00044019,16]
[331179161,1720121889463,-150.0,0.0004403,30]
[331179162,1720121889491,-453.47705904,0.00044035,30]
[331179163,1720121889516,-195.81414408,0.00044035,30]
[331179164,1720121889540,-150.0,0.00044078,30]
[331179165,1720121889564,-453.47705904,0.00044082,30]
[331179166,1720121889587,-195.81414408,0.00044082,30]
[331179167,1720121889612,-600.0,0.00044109,30]
[331179168,1720121889636,-1000.0,0.00044109,106]
[331179169,1720121889659,-150.0,0.00044126,30]
[331179170,1720121889684,-453.47705904,0.00044129,30]